[Event "Niedersachsen-ch B 2024"]
[Site "Verden Aller"]
[Date "2024.01.04"]
[Round "2.1"]
[White "Schoettker, Jochen"]
[Black "Wilmink, Luca"]
[Result "1-0"]
[ECO "E61"]
[WhiteElo "1875"]
[BlackElo "1539"]
[Annotator "NA RC"]
[PlyCount "57"]
[EventDate "2024.01.01"]
[EventType "swiss"]
[EventCountry "GER"]
[SourceTitle "playchess.com"]
[Source "ChessBase"]
[SourceQuality "1"]
[TimeControl "40/5400+30:1800+30"]

1. d4 {[%emt 0:00:06]} Nf6 {[%emt 0:00:16]} 2. Nf3 {[%emt 0:00:24]} g6 {[%emt 0:00:59]} 3. Bf4 {[%emt 0:02:13]} Bg7 {[%emt 0:00:46]} 4. e3 {[%emt 0:00:23]} d6 {[%emt 0:00:54]} 5. h3 {[%emt 0:00:17]} Nbd7 {[%emt 0:01:13]} 6. Be2 {[%emt 0:02:45]} O-O {[%emt 0:01:16]} 7. c4 {[%emt 0:02:47]} c5 {[%emt 0:02:06]} 8. Nc3 {[%emt 0:01:14]} Re8 {[%emt 0:12:46]} 9. O-O {[%emt 0:01:58]} b6 {[%emt 0:04:51]} 10. Rc1 {[%emt 0:04:46]} Bb7 {[%emt 0:02:52]} 11. d5 {[%emt 0:01:50]} Nf8 {[%emt 0:03:39]} 12. Re1 {[%emt 0:02:48]} Qd7 {[%emt 0:04:49]} 13. e4 {[%emt 0:01:07]} Rad8 {[%emt 0:07:03]} 14. e5 {[%emt 0:04:26]} dxe5 {[%emt 0:03:18]} 15. Nxe5 {[%emt 0:06:57]} Qf5 {[%emt 0:01:07]} 16. Bg3 {[%emt 0:02:47]} Qc8 {[%emt 0:12:43]} 17. Qa4 {[%emt 0:04:14]} a6 {[%emt 0:03:24]} 18. Bf3 {[%emt 0:01:31]} Qa8 {[%emt 0:05:42]} 19. Rcd1 {[%emt 0:06:31]} Rc8 {[%emt 0:04:53]} 20. Qb3 {[%emt 0:02:34]} N8d7 {[%emt 0:01:18]} 21. Rd3 {[%emt 0:02:56]} e6 {[%emt 0:02:29]} 22. Nxd7 {[%emt 0:01:57]} Nxd7 {[%emt 0:00:03]} 23. dxe6 {[%emt 0:00:27]} Rcd8 {[%emt 0:03:40]} 24. Red1 {[%emt 0:03:14]} Bxf3 {[%emt 0:01:54]} 25. exd7 {[%emt 0:00:45]} Bxg2 {[%emt 0:01:51]} 26. dxe8=Q+ {[%emt 0:00:43]} Rxe8 {[%emt 0:00:06]} 27. Nd5 {[%emt 0:00:30]} Bxh3 {[%emt 0:00:17]} 28. Qxb6 {[%emt 0:00:46]} Qc8 {[%emt 0:02:22]} 29. Ne7+ {[%emt 0:00:50]} 1-0

[Event "Niedersachsen-ch B 2024"]
[Site "Verden Aller"]
[Date "2024.01.04"]
[Round "2.2"]
[White "Nguyen, Laurentius"]
[Black "Rossberg, Jonathan"]
[Result "0-1"]
[ECO "B40"]
[WhiteElo "1546"]
[BlackElo "1818"]
[Annotator "NA RC"]
[PlyCount "82"]
[EventDate "2024.01.01"]
[EventType "swiss"]
[EventCountry "GER"]
[SourceTitle "playchess.com"]
[Source "ChessBase"]
[SourceQuality "1"]
[TimeControl "40/5400+30:1800+30"]

1. e4 {[%emt 0:00:02]} c5 {[%emt 0:00:07]} 2. Nf3 {[%emt 0:01:22]} e6 {[%emt 0:00:09]} 3. d3 {[%emt 0:00:28]} d5 {[%emt 0:00:39]} 4. Nbd2 {[%emt 0:00:31]} Nc6 {[%emt 0:01:28]} 5. g3 {[%emt 0:00:12]} Nf6 {[%emt 0:02:08]} 6. exd5 {[%emt 0:03:23]} exd5 {[%emt 0:00:47]} 7. Bg2 {[%emt 0:00:25]} Qe7+ {[%emt 0:01:46]} 8. Qe2 {[%emt 0:03:06]} Qxe2+ {[%emt 0:03:03]} 9. Kxe2 {[%emt 0:00:04]} Bd6 {[%emt 0:03:17]} 10. a3 {[%emt 0:02:45]} O-O {[%emt 0:04:17]} 11. Re1 {[%emt 0:03:22]} Bf5 {[%emt 0:13:24]} 12. Kf1 {[%emt 0:07:57]} Rfe8 {[%emt 0:01:30]} 13. b3 {[%emt 0:01:20]} Rxe1+ {[%emt 1:04:25]} 14. Nxe1 {[%emt 0:01:06]} Nd4 {[%emt 0:00:00]} 15. Ndf3 {[%emt 0:04:18]} Nxc2 {[%emt 0:00:00]} 16. Ra2 {[%emt 0:04:31]} Nxe1 {[%emt 0:00:00]} 17. Nxe1 {[%emt 0:00:03]} h6 {[%emt 0:00:00]} 18. Rd2 {[%emt 0:07:33]} d4 {[%emt 0:00:00]} 19. Nc2 {[%emt 0:04:48]} Rc8 {[%emt 0:00:00]} 20. a4 {[%emt 0:06:20]} b6 {[%emt 0:00:00]} 21. Na3 {[%emt 0:01:18]} Ng4 {[%emt 0:00:00]} 22. Nc4 {[%emt 0:02:15]} Bb8 {[%emt 0:00:00]} 23. Kg1 {[%emt 0:04:03]} Re8 {[%emt 0:00:00]} 24. Be4 {[%emt 0:03:23]} Bxe4 {[%emt 0:00:00]} 25. dxe4 {[%emt 0:00:02]} Rxe4 {[%emt 0:00:00]} 26. Ba3 {[%emt 0:03:18]} Ne5 {[%emt 0:00:00]} 27. Nxe5 {[%emt 0:00:54]} Bxe5 {[%emt 0:00:00]} 28. Kf1 {[%emt 0:04:06]} f5 {[%emt 0:00:00]} 29. Bc1 {[%emt 0:01:10]} f4 {[%emt 0:00:00]} 30. Rd3 {[%emt 0:00:18]} fxg3 {[%emt 0:00:00]} 31. hxg3 {[%emt 0:00:07]} Bf6 {[%emt 0:00:00]} 32. Rf3 {[%emt 0:00:27]} Kf7 {[%emt 0:01:00]} 33. Bf4 {[%emt 0:00:33]} a6 {[%emt 0:02:06]} 34. Rd3 {[%emt 0:00:37]} b5 {[%emt 0:01:08]} 35. Bd6 {[%emt 0:03:29]} c4 {[%emt 0:00:29]} 36. Rd1 {[%emt 0:00:59]} Ke6 {[%emt 0:01:45]} 37. Bf4 {[%emt 0:00:47]} Kd5 {[%emt 0:00:11]} 38. b4 {[%emt 0:01:06]} Bg5 {[%emt 0:02:04]} 39. Bb8 {[%emt 0:00:25]} c3 {[%emt 0:00:20]} 40. f3 {[%emt 0:00:31]} Re8 {[%emt 0:01:14]} 41. f4 {[%emt 0:31:00]} Rxb8 {[%emt 0:30:32]} 0-1

[Event "Niedersachsen-ch B 2024"]
[Site "Verden Aller"]
[Date "2024.01.04"]
[Round "2.3"]
[White "Krneta, Slavko"]
[Black "ter Stal, Esther"]
[Result "0-1"]
[ECO "B12"]
[WhiteElo "1767"]
[BlackElo "1486"]
[Annotator "NA RC"]
[PlyCount "84"]
[EventDate "2024.01.01"]
[EventType "swiss"]
[EventCountry "GER"]
[SourceTitle "playchess.com"]
[Source "ChessBase"]
[SourceQuality "1"]
[TimeControl "40/5400+30:1800+30"]

1. e4 {[%emt 0:00:12]} c6 {[%emt 0:00:12]} 2. d4 {[%emt 0:01:35]} d5 {[%emt 0:00:16]} 3. e5 {[%emt 0:00:20]} c5 {[%emt 0:01:23]} 4. c3 {[%emt 0:00:26]} Nc6 {[%emt 0:00:43]} 5. b3 {[%emt 0:05:21]} Bf5 {[%emt 0:03:03]} 6. Bd3 {[%emt 0:00:40]} Bxd3 {[%emt 0:01:01]} 7. Qxd3 {[%emt 0:00:11]} e6 {[%emt 0:01:06]} 8. f4 {[%emt 0:02:51]} Nh6 {[%emt 0:02:46]} 9. Nf3 {[%emt 0:02:35]} Nf5 {[%emt 0:06:04]} 10. O-O {[%emt 0:02:31]} Qb6 {[%emt 0:03:50]} 11. Bb2 {[%emt 0:04:15]} cxd4 {[%emt 0:06:55]} 12. cxd4 {[%emt 0:01:59]} Be7 {[%emt 0:01:29]} 13. g4 {[%emt 0:00:47]} Nh4 {[%emt 0:10:04]} 14. Nxh4 {[%emt 0:06:33]} Bxh4 {[%emt 0:00:27]} 15. Nd2 {[%emt 0:01:35]} O-O {[%emt 0:05:38]} 16. g5 {[%emt 0:03:35]} Nb4 {[%emt 0:03:13]} 17. Qh3 {[%emt 0:04:41]} Nc2 {[%emt 0:12:03]} 18. Qxh4 {[%emt 0:07:09]} Nxa1 {[%emt 0:01:04]} 19. Rxa1 {[%emt 0:03:25]} Qa6 {[%emt 0:02:46]} 20. Nf1 {[%emt 0:07:06]} Rac8 {[%emt 0:04:45]} 21. Qf2 {[%emt 0:04:08]} Qd3 {[%emt 0:01:57]} 22. Ne3 {[%emt 0:01:14]} Rc6 {[%emt 0:04:29]} 23. Rd1 {[%emt 0:01:00]} Qe4 {[%emt 0:01:29]} 24. h4 {[%emt 0:01:26]} Rfc8 {[%emt 0:00:57]} 25. h5 {[%emt 0:02:22]} h6 {[%emt 0:09:08]} 26. gxh6 {[%emt 0:00:23]} gxh6 {[%emt 0:00:18]} 27. Kh2 {[%emt 0:00:47]} Kh7 {[%emt 0:01:22]} 28. Rg1 {[%emt 0:06:01]} Rc2 {[%emt 0:04:37]} 29. Nxc2 {[%emt 0:00:32]} Rxc2 {[%emt 0:00:07]} 30. Rg2 {[%emt 0:04:05]} Rxf2 {[%emt 0:00:21]} 31. Rxf2 {[%emt 0:00:09]} Qf5 {[%emt 0:00:36]} 32. Ba3 {[%emt 0:00:52]} Qxh5+ {[%emt 0:00:26]} 33. Kg3 {[%emt 0:01:03]} Qg6+ {[%emt 0:00:59]} 34. Kh2 {[%emt 0:00:19]} Qe4 {[%emt 0:01:01]} 35. Be7 {[%emt 0:04:18]} Qxd4 {[%emt 0:04:12]} 36. Kg1 {[%emt 0:00:45]} Qd1+ {[%emt 0:01:01]} 37. Kh2 {[%emt 0:00:26]} Kg6 {[%emt 0:00:59]} 38. Bf8 {[%emt 0:03:11]} Qh5+ {[%emt 0:02:29]} 39. Kg1 {[%emt 0:01:16]} Kf5 {[%emt 0:00:23]} 40. Kf1 {[%emt 0:01:04]} d4 {[%emt 0:00:31]} 41. Ke1 {[%emt 0:30:53]} d3 {[%emt 0:30:48]} 42. Kd2 {[%emt 0:00:31]} Ke4 {[%emt 0:04:32]} 0-1

[Event "Niedersachsen-ch B 2024"]
[Site "Verden Aller"]
[Date "2024.01.04"]
[Round "2.4"]
[White "Eitel, Luc"]
[Black "Schlaetker, Christine"]
[Result "0-1"]
[ECO "C54"]
[WhiteElo "1535"]
[BlackElo "1745"]
[Annotator "NA RC"]
[PlyCount "66"]
[EventDate "2024.01.01"]
[EventType "swiss"]
[EventCountry "GER"]
[SourceTitle "playchess.com"]
[Source "ChessBase"]
[SourceQuality "1"]
[TimeControl "40/5400+30:1800+30"]

1. e4 {[%emt 0:00:04]} e5 {[%emt 0:00:05]} 2. Nf3 {[%emt 0:00:04]} Nc6 {[%emt 0:00:07]} 3. Bc4 {[%emt 0:00:05]} Bc5 {[%emt 0:00:16]} 4. c3 {[%emt 0:00:06]} Nf6 {[%emt 0:00:27]} 5. d3 {[%emt 0:00:07]} h6 {[%emt 0:00:52]} 6. O-O {[%emt 0:00:16]} d6 {[%emt 0:01:09]} 7. Re1 {[%emt 0:00:37]} O-O {[%emt 0:01:01]} 8. Nbd2 {[%emt 0:00:28]} a6 {[%emt 0:01:28]} 9. Nf1 {[%emt 0:00:21]} b5 {[%emt 0:00:51]} 10. Bb3 {[%emt 0:01:54]} a5 {[%emt 0:02:21]} 11. a4 {[%emt 0:04:20]} b4 {[%emt 0:02:16]} 12. Be3 {[%emt 0:02:03]} Ba7 {[%emt 0:01:26]} 13. Bxa7 {[%emt 0:06:10]} Rxa7 {[%emt 0:01:04]} 14. Ne3 {[%emt 0:04:59]} Nd7 {[%emt 0:09:11]} 15. Qd2 {[%emt 0:08:46]} Nc5 {[%emt 0:03:52]} 16. Bd5 {[%emt 0:09:54]} bxc3 {[%emt 0:03:09]} 17. bxc3 {[%emt 0:01:34]} Ne7 {[%emt 0:01:07]} 18. Bc4 {[%emt 0:02:37]} Ba6 {[%emt 0:03:48]} 19. Qc2 {[%emt 0:04:28]} Bxc4 {[%emt 0:09:30]} 20. Nxc4 {[%emt 0:51:37]} f5 {[%emt 0:01:22]} 21. exf5 {[%emt 0:00:00]} Nxf5 {[%emt 0:02:25]} 22. d4 {[%emt 0:00:00]} e4 {[%emt 0:02:08]} 23. Nfd2 {[%emt 0:00:00]} Nd3 {[%emt 0:00:49]} 24. Rf1 {[%emt 0:00:00]} d5 {[%emt 0:08:05]} 25. Ne3 {[%emt 0:00:00]} Nxe3 {[%emt 0:04:13]} 26. fxe3 {[%emt 0:00:00]} Rxf1+ {[%emt 0:00:58]} 27. Nxf1 {[%emt 0:00:00]} Qg5 {[%emt 0:05:22]} 28. Rb1 {[%emt 0:00:00]} c6 {[%emt 0:01:04]} 29. Rd1 {[%emt 0:00:00]} Rb7 {[%emt 0:06:48]} 30. Rd2 {[%emt 0:00:00]} Ne1 {[%emt 0:01:15]} 31. Qd1 {[%emt 0:00:00]} Nf3+ {[%emt 0:00:25]} 32. Kh1 {[%emt 0:00:00]} Nxd2 {[%emt 0:00:32]} 33. Qxd2 {[%emt 0:00:09]} Rb1 {[%emt 0:02:49]} 0-1

[Event "Niedersachsen-ch B 2024"]
[Site "Verden Aller"]
[Date "2024.01.04"]
[Round "2.5"]
[White "Walther, Jonas"]
[Black "Laun, Kurt"]
[Result "1-0"]
[ECO "B51"]
[WhiteElo "1744"]
[BlackElo "1448"]
[Annotator "NA RC"]
[PlyCount "63"]
[EventDate "2024.01.01"]
[EventType "swiss"]
[EventCountry "GER"]
[SourceTitle "playchess.com"]
[Source "ChessBase"]
[SourceQuality "1"]
[TimeControl "40/5400+30:1800+30"]

1. e4 {[%emt 0:00:05]} c5 {[%emt 0:00:10]} 2. Nf3 {[%emt 0:00:05]} Nc6 {[%emt 0:00:21]} 3. Bb5 {[%emt 0:00:05]} d6 {[%emt 0:01:22]} 4. O-O {[%emt 0:01:18]} e5 {[%emt 0:04:05]} 5. h3 {[%emt 0:09:39]} Nf6 {[%emt 0:00:43]} 6. Re1 {[%emt 0:07:41]} Be7 {[%emt 0:00:47]} 7. c3 {[%emt 0:00:13]} O-O {[%emt 0:04:30]} 8. d4 {[%emt 0:00:42]} cxd4 {[%emt 0:03:04]} 9. cxd4 {[%emt 0:00:01]} exd4 {[%emt 0:00:44]} 10. Nxd4 {[%emt 0:00:42]} Nxd4 {[%emt 0:05:29]} 11. Qxd4 {[%emt 0:00:06]} Qa5 {[%emt 0:00:44]} 12. Nc3 {[%emt 0:00:39]} Be6 {[%emt 0:01:58]} 13. Bf4 {[%emt 0:08:10]} a6 {[%emt 0:03:15]} 14. Be2 {[%emt 0:10:45]} Rfd8 {[%emt 0:03:31]} 15. b4 {[%emt 0:03:46]} Qc7 {[%emt 0:08:33]} 16. Rac1 {[%emt 0:00:10]} Qd7 {[%emt 0:00:32]} 17. Red1 {[%emt 0:02:49]} Rac8 {[%emt 0:09:12]} 18. Qe3 {[%emt 0:02:50]} Bc4 {[%emt 0:11:26]} 19. Bf3 {[%emt 0:09:21]} b5 {[%emt 0:05:12]} 20. e5 {[%emt 0:24:18]} Ne8 {[%emt 0:01:43]} 21. Ne4 {[%emt 0:00:36]} Bxa2 {[%emt 0:01:13]} 22. exd6 {[%emt 0:00:58]} Rxc1 {[%emt 0:03:23]} 23. Qxc1 {[%emt 0:00:06]} Nxd6 {[%emt 0:01:08]} 24. Bxd6 {[%emt 0:01:39]} Bxd6 {[%emt 0:00:26]} 25. Rxd6 {[%emt 0:00:49]} Qe7 {[%emt 0:02:09]} 26. Rxd8+ {[%emt 0:00:20]} Qxd8 {[%emt 0:00:08]} 27. Qd2 {[%emt 0:00:27]} Qxd2 {[%emt 0:07:22]} 28. Nxd2 {[%emt 0:00:24]} Bc4 {[%emt 0:00:52]} 29. Bb7 {[%emt 0:00:04]} a5 {[%emt 0:00:20]} 30. Nxc4 {[%emt 0:00:28]} bxc4 {[%emt 0:00:13]} 31. bxa5 {[%emt 0:00:05]} c3 {[%emt 0:00:14]} 32. Be4 {[%emt 0:00:02]} 1-0

[Event "Niedersachsen-ch B 2024"]
[Site "Verden Aller"]
[Date "2024.01.04"]
[Round "2.6"]
[White "Pfeifer, Frank"]
[Black "Balazs, Kata"]
[Result "0-1"]
[ECO "B01"]
[WhiteElo "1529"]
[BlackElo "1723"]
[Annotator "NA RC"]
[PlyCount "60"]
[EventDate "2024.01.01"]
[EventType "swiss"]
[EventCountry "GER"]
[SourceTitle "playchess.com"]
[Source "ChessBase"]
[SourceQuality "1"]
[TimeControl "40/5400+30:1800+30"]

1. e4 {[%emt 0:00:04]} d5 {[%emt 0:00:07]} 2. exd5 {[%emt 0:00:06]} Qxd5 {[%emt 0:00:04]} 3. Nc3 {[%emt 0:00:13]} Qa5 {[%emt 0:00:06]} 4. d4 {[%emt 0:00:21]} Nf6 {[%emt 0:00:10]} 5. Bd2 {[%emt 0:00:24]} Qb6 {[%emt 0:01:45]} 6. Be3 {[%emt 0:05:06]} Qxb2 {[%emt 0:06:57]} 7. Nce2 {[%emt 0:01:07]} e6 {[%emt 0:02:45]} 8. c3 {[%emt 0:04:37]} Ne4 {[%emt 0:07:03]} 9. Qc1 {[%emt 0:05:59]} Ba3 {[%emt 0:12:31]} 10. Nf3 {[%emt 0:00:26]} O-O {[%emt 0:01:17]} 11. Ne5 {[%emt 0:00:25]} Nd7 {[%emt 0:09:19]} 12. Nc4 {[%emt 0:00:34]} Qxc1+ {[%emt 0:00:09]} 13. Bxc1 {[%emt 0:00:14]} Bxc1 {[%emt 0:00:16]} 14. Rxc1 {[%emt 0:00:07]} Re8 {[%emt 0:01:35]} 15. Ng3 {[%emt 0:03:14]} Nxg3 {[%emt 0:01:41]} 16. hxg3 {[%emt 0:00:11]} e5 {[%emt 0:00:53]} 17. Kd2 {[%emt 0:00:35]} e4 {[%emt 0:02:03]} 18. Rh4 {[%emt 0:00:24]} Nf6 {[%emt 0:00:48]} 19. Ne5 {[%emt 0:00:50]} Be6 {[%emt 0:03:55]} 20. c4 {[%emt 0:01:37]} Rad8 {[%emt 0:01:50]} 21. Kc3 {[%emt 0:01:26]} Re7 {[%emt 0:04:52]} 22. Be2 {[%emt 0:00:49]} c5 {[%emt 0:02:13]} 23. d5 {[%emt 0:00:17]} Bxd5 {[%emt 0:01:22]} 24. Ng4 {[%emt 0:02:25]} Nxg4 {[%emt 0:01:37]} 25. Bxg4 {[%emt 0:01:07]} Bc6 {[%emt 0:00:56]} 26. Be2 {[%emt 0:00:38]} e3 {[%emt 0:03:40]} 27. Bd3 {[%emt 0:00:40]} h6 {[%emt 0:04:31]} 28. Re1 {[%emt 0:04:31]} exf2 {[%emt 0:03:42]} 29. Rxe7 {[%emt 0:00:16]} Rxd3+ {[%emt 0:00:11]} 30. Kxd3 {[%emt 0:00:21]} f1=Q+ {[%emt 0:27:12]} 0-1

[Event "Niedersachsen-ch B 2024"]
[Site "Verden Aller"]
[Date "2024.01.04"]
[Round "2.7"]
[White "Spieker, Hans-Joachim"]
[Black "Berkenkamp, Matthis"]
[Result "1/2-1/2"]
[ECO "A11"]
[WhiteElo "1719"]
[BlackElo "1425"]
[Annotator "NA RC"]
[PlyCount "81"]
[EventDate "2024.01.01"]
[EventType "swiss"]
[EventCountry "GER"]
[SourceTitle "playchess.com"]
[Source "ChessBase"]
[SourceQuality "1"]
[TimeControl "40/5400+30:1800+30"]

1. Nf3 {[%emt 0:00:01]} Nf6 {[%emt 0:00:19]} 2. c4 {[%emt 0:00:03]} c6 {[%emt 0:00:25]} 3. g3 {[%emt 1:31:56]} d5 {[%emt 0:00:16]} 4. b3 {[%emt 0:00:00]} Nbd7 {[%emt 0:01:00]} 5. Bb2 {[%emt 0:00:00]} e6 {[%emt 0:01:33]} 6. Bg2 {[%emt 0:00:00]} g6 {[%emt 0:00:55]} 7. O-O {[%emt 0:00:00]} Bg7 {[%emt 0:00:07]} 8. d3 {[%emt 0:00:00]} O-O {[%emt 0:00:11]} 9. Nbd2 {[%emt 0:00:00]} Re8 {[%emt 0:00:58]} 10. Ne5 {[%emt 0:00:00]} Ng4 {[%emt 0:03:28]} 11. Nxg4 {[%emt 0:00:00]} Bxb2 {[%emt 0:00:06]} 12. Nh6+ {[%emt 0:00:00]} Kf8 {[%emt 0:03:56]} 13. Rb1 {[%emt 0:00:00]} Bg7 {[%emt 0:00:48]} 14. Ng4 {[%emt 0:00:00]} d4 {[%emt 0:05:54]} 15. f4 {[%emt 0:00:00]} f5 {[%emt 0:02:23]} 16. Nf2 {[%emt 0:00:00]} Rb8 {[%emt 0:00:27]} 17. b4 {[%emt 0:00:00]} c5 {[%emt 0:03:00]} 18. bxc5 {[%emt 0:00:00]} Nxc5 {[%emt 0:00:14]} 19. Nb3 {[%emt 0:00:00]} Na4 {[%emt 0:00:44]} 20. Qc2 {[%emt 0:00:00]} Nc3 {[%emt 0:01:09]} 21. Rbc1 {[%emt 0:00:00]} b6 {[%emt 0:03:58]} 22. Nd1 {[%emt 0:00:00]} Nxd1 {[%emt 0:04:03]} 23. Rcxd1 {[%emt 0:00:00]} Bb7 {[%emt 0:00:13]} 24. Nd2 {[%emt 0:00:00]} Bxg2 {[%emt 0:01:48]} 25. Kxg2 {[%emt 0:00:00]} e5 {[%emt 0:01:40]} 26. fxe5 {[%emt 0:00:00]} Rxe5 {[%emt 0:00:43]} 27. Nf3 {[%emt 0:00:00]} Re3 {[%emt 0:00:38]} 28. Rde1 {[%emt 0:00:00]} Qd7 {[%emt 0:03:42]} 29. Ng1 {[%emt 0:00:00]} Qc6+ {[%emt 0:02:30]} 30. Rf3 {[%emt 0:00:00]} Rbe8 {[%emt 0:00:37]} 31. Kf2 {[%emt 0:00:00]} Bh6 {[%emt 0:00:47]} 32. Qb2 {[%emt 0:00:00]} Rxf3+ {[%emt 0:01:13]} 33. Nxf3 {[%emt 0:00:00]} Be3+ {[%emt 0:00:08]} 34. Kf1 {[%emt 0:00:00]} Re5 {[%emt 0:07:38]} 35. Qa3+ {[%emt 0:00:00]} Rc5 {[%emt 0:00:05]} 36. Qxa7 {[%emt 0:00:00]} g5 {[%emt 0:00:04]} 37. Qxh7 {[%emt 0:00:00]} g4 {[%emt 0:00:32]} 38. Qh8+ {[%emt 0:00:00]} Ke7 {[%emt 0:01:03]} 39. Qg7+ {[%emt 0:00:00]} Kd8 {[%emt 0:00:43]} 40. Qf8+ {[%emt 0:00:00]} Kc7 {[%emt 0:00:22]} 41. Qf7+ {[%emt 0:14:19]} 1/2-1/2

[Event "Niedersachsen-ch B 2024"]
[Site "Verden Aller"]
[Date "2024.01.04"]
[Round "2.8"]
[White "Zweck, Gerhard"]
[Black "Rademacher, Bengt"]
[Result "1/2-1/2"]
[ECO "B12"]
[WhiteElo "1414"]
[BlackElo "1702"]
[Annotator "NA RC"]
[PlyCount "132"]
[EventDate "2024.01.01"]
[EventType "swiss"]
[EventCountry "GER"]
[SourceTitle "playchess.com"]
[Source "ChessBase"]
[SourceQuality "1"]
[TimeControl "40/5400+30:1800+30"]

1. e4 {[%emt 0:00:18]} c6 {[%emt 0:00:11]} 2. d4 {[%emt 0:00:54]} d5 {[%emt 0:00:10]} 3. e5 {[%emt 0:00:03]} Bf5 {[%emt 0:00:12]} 4. Nf3 {[%emt 0:00:57]} e6 {[%emt 0:00:13]} 5. c3 {[%emt 0:02:58]} c5 {[%emt 0:01:06]} 6. Na3 {[%emt 0:10:35]} Nc6 {[%emt 0:06:12]} 7. Nc2 {[%emt 0:05:48]} Bxc2 {[%emt 0:06:44]} 8. Qxc2 {[%emt 0:00:33]} cxd4 {[%emt 0:00:24]} 9. Nxd4 {[%emt 0:05:30]} Nge7 {[%emt 0:05:30]} 10. Qa4 {[%emt 0:04:28]} Rc8 {[%emt 0:12:57]} 11. Bg5 {[%emt 0:05:01]} Qd7 {[%emt 0:07:35]} 12. Bb5 {[%emt 0:10:50]} a6 {[%emt 0:02:11]} 13. Bxc6 {[%emt 0:15:01]} Nxc6 {[%emt 0:00:20]} 14. Nxc6 {[%emt 0:00:18]} Qxc6 {[%emt 0:01:01]} 15. Qxc6+ {[%emt 0:00:46]} Rxc6 {[%emt 0:01:17]} 16. O-O {[%emt 0:00:52]} Be7 {[%emt 0:03:09]} 17. Be3 {[%emt 0:00:47]} Kd7 {[%emt 0:01:13]} 18. f4 {[%emt 0:04:30]} g6 {[%emt 0:01:04]} 19. Rad1 {[%emt 0:01:57]} b5 {[%emt 0:01:27]} 20. a3 {[%emt 0:06:47]} Rhc8 {[%emt 0:02:19]} 21. Rc1 {[%emt 0:03:13]} a5 {[%emt 0:01:54]} 22. g4 {[%emt 0:02:25]} Rc4 {[%emt 0:02:32]} 23. Kg2 {[%emt 0:01:01]} b4 {[%emt 0:11:05]} 24. axb4 {[%emt 0:10:29]} axb4 {[%emt 0:00:40]} 25. cxb4 {[%emt 0:01:21]} Bxb4 {[%emt 0:02:18]} 26. Rxc4 {[%emt 0:00:23]} Rxc4 {[%emt 0:00:19]} 27. Rc1 {[%emt 0:00:10]} Rxc1 {[%emt 0:01:32]} 28. Bxc1 {[%emt 0:00:03]} Kc6 {[%emt 0:00:11]} 29. Kf3 {[%emt 0:00:23]} Kc5 {[%emt 0:00:31]} 30. h4 {[%emt 0:01:59]} Kc4 {[%emt 0:01:45]} 31. f5 {[%emt 0:01:25]} gxf5 {[%emt 0:06:56]} 32. gxf5 {[%emt 0:00:05]} Kd3 {[%emt 0:02:00]} 33. Kf4 {[%emt 0:01:34]} Bd2+ {[%emt 0:01:13]} 34. Bxd2 {[%emt 0:01:13]} Kxd2 {[%emt 0:00:02]} 35. b4 {[%emt 0:00:09]} d4 {[%emt 0:01:26]} 36. b5 {[%emt 0:00:17]} d3 {[%emt 0:00:24]} 37. b6 {[%emt 0:00:22]} Kc2 {[%emt 0:01:06]} 38. b7 {[%emt 0:00:25]} d2 {[%emt 0:00:07]} 39. b8=Q {[%emt 0:00:46]} d1=Q {[%emt 0:00:11]} 40. Qc8+ {[%emt 0:01:26]} Kb3 {[%emt 0:01:28]} 41. Qb7+ {[%emt 0:30:32]} Kc4 {[%emt 0:31:31]} 42. Qa6+ {[%emt 0:00:14]} Kc5 {[%emt 0:01:00]} 43. Qa5+ {[%emt 0:02:19]} Kc6 {[%emt 0:00:50]} 44. Qa8+ {[%emt 0:00:00]} Kc5 {[%emt 0:00:00]} 45. Qf8+ {[%emt 0:00:00]} Kc6 {[%emt 0:00:00]} 46. Qe8+ {[%emt 0:00:00]} Kc5 {[%emt 0:00:00]} 47. Qc8+ {[%emt 0:00:00]} Kb6 {[%emt 0:00:00]} 48. Qb8+ {[%emt 0:00:00]} Kc6 {[%emt 0:00:00]} 49. Qe8+ {[%emt 0:00:00]} Kc5 {[%emt 0:00:00]} 50. Qc8+ {[%emt 0:00:00]} Kb6 {[%emt 0:00:00]} 51. Qc3 {[%emt 0:00:00]} Qf1+ {[%emt 0:00:00]} 52. Qf3 {[%emt 0:00:00]} Qc4+ {[%emt 0:00:00]} 53. Kg5 {[%emt 0:01:22]} exf5 {[%emt 0:00:00]} 54. Qxf5 {[%emt 0:00:30]} h6+ {[%emt 0:00:00]} 55. Kh5 {[%emt 0:00:34]} Kc7 {[%emt 0:00:00]} 56. Qg4 {[%emt 0:00:55]} Qxg4+ {[%emt 0:00:00]} 57. Kxg4 {[%emt 0:00:03]} Kd7 {[%emt 0:00:00]} 58. Kf5 {[%emt 0:00:57]} Ke7 {[%emt 0:00:00]} 59. h5 {[%emt 0:00:29]} Kf8 {[%emt 0:00:00]} 60. Kf6 {[%emt 0:00:03]} Kg8 {[%emt 0:00:00]} 61. Ke7 {[%emt 0:01:22]} Kg7 {[%emt 0:00:00]} 62. Ke8 {[%emt 0:01:04]} Kg8 {[%emt 0:00:00]} 63. Ke7 {[%emt 0:00:32]} Kg7 {[%emt 0:00:00]} 64. Kd6 {[%emt 0:00:45]} Kf8 {[%emt 0:00:00]} 65. Kd7 {[%emt 0:00:10]} Kg7 {[%emt 0:00:00]} 66. Ke7 {[%emt 0:00:54]} Kg8 {[%emt 0:00:00]} 1/2-1/2